Cogmind - Beta 9 @@@ ROGUE MODE // 2019.10.22 @ 17:43:18 Player: Hilbert Result: Destroyed by S-27 Virus with Autogun Performance ------------- Evolutions (3) 1500 Regions Visited (6) 1200 Robots Destroyed (40) 200 Value Destroyed (1196) 1196 Prototype IDs (1) 20 Alien Tech Used (0) 0 Bonus (0) 0 TOTAL SCORE: 4116 Bonus ------- None Cogmind --------- Core Integrity 0/700 Matter 290/300 Energy 87/100 System Corruption 0% Temperature Cool (0) Location -7/Lower Caves Parts ------- Power (2) Propulsion (3) Utility (4) Improved Terrain Scan Processor Weapon (4) Small Laser Inventory (4) Heat Sink Small Storage Unit Advanced Signal Interpreter Peak State ------------ Power Improved Ion Engine Light Nuclear Core Propulsion Light Treads Light Treads Light Treads Utility Large Storage Unit Large Storage Unit Improved Terrain Scan Processor Core Shielding Weapon Beam Cannon Heavy Assault Rifle Improved Grenade Launcher Katana Inventory Heat Sink Small Storage Unit Advanced Signal Interpreter Light Armor Plating Heavy EM Shotgun Heavy EM Shotgun Small Laser EM Pulse Cannon Heavy Assault Rifle Remote Datajack Greatsword [Rating: 26] Favorites ----------- Power Improved Ion Engine Engine Improved Ion Engine Power Core Light Nuclear Core Propulsion Light Treads Treads Light Treads Leg Aluminum Leg Utility Large Storage Unit Storage Large Storage Unit Processor Improved Terrain Scan Processor Protection Core Shielding Weapon Beam Cannon Energy Gun Small Laser Energy Cannon Beam Cannon Ballistic Gun Heavy Assault Rifle Launcher Improved Grenade Launcher Slashing Weapon Katana Build | -11 -10 -9 -9 -8 -7 -7 ------- Run | Scr Mat Mat Sto Mat Fac Low Slots Evolved 6 | . . 2 . 2 2 . Power 1 | . . . . . 1 . Propulsion 1 | . . . . 1 . . Utility 2 | . . . . 1 1 . Weapon 2 | . . 2 . . . . Parts Attached 48 | 6 1 4 17 5 4 11 Power 6 | 1 . 1 2 1 1 . Engine 5 | 1 . 1 2 1 . . Core 1 | . . . . . 1 . Reactor . | . . . . . . . Propulsion 12 | 2 . . 4 2 . 4 Treads 8 | . . . 2 2 . 4 Leg 4 | 2 . . 2 . . . Wheel . | . . . . . . . Hover . | . . . . . . . Flight . | . . . . . . . Utility 7 | 1 1 1 1 1 1 1 Device . | . . . . . . . Storage 3 | 1 . 1 1 . . . Processor 1 | . . . . . 1 . Hackware . | . . . . . . . Protection 3 | . 1 . . 1 . 1 Artifact . | . . . . . . . Weapon 23 | 2 . 2 10 1 2 6 Energy Gun 6 | 1 . . 2 1 . 2 Energy Cannon 5 | . . . 4 . . 1 Ballistic Gun 7 | 1 . 2 2 . 1 1 Ballistic Cannon . | . . . . . . . Launcher 3 | . . . 1 . 1 1 Special Weapon . | . . . . . . . Impact Weapon . | . . . . . . . Slashing Weapon 2 | . . . 1 . . 1 Piercing Weapon . | . . . . . . . Special Melee Weapon . | . . . . . . . Unidentified Prototypes 1 | . . . . . . 1 Parts Lost 35 | . . 1 13 2 1 18 Power 6 | . . 1 2 1 . 2 Propulsion 8 | . . . 2 1 . 5 Utility 4 | . . . . . . 4 Weapon 17 | . . . 9 . 1 7 Highest Loss Streak 15 | . . 1 11 2 1 15 Average Slot Usage (%) 90 | . 95 100 88 97 92 83 Engine 7 | . 14 11 10 8 7 2 Core 1 | . . . . . . 6 Treads 17 | . . . 16 25 23 16 Leg 4 | . 28 22 2 . . . Storage 17 | . 14 11 21 18 15 14 Processor 2 | . . . . . 6 7 Protection 5 | . 9 11 . 9 7 6 Energy Gun 4 | . 14 11 1 8 4 . Energy Cannon 8 | . . . 15 9 7 6 Ballistic Gun 10 | . 14 33 12 9 5 6 Launcher 2 | . . . 1 . 3 6 Slashing Weapon 5 | . . . 4 9 7 6 Naked Turns . | . . . . . . . Heaviest Build 59 | 11 14 30 50 49 59 59 Greatest Support 60 | 20 20 20 40 60 60 60 Greatest Overweight (x) 14 | 1 . 1 13 1 . 14 Average Overweight (x) . | . . . 1 . . . Largest Inventory Capacity 16 | 6 6 10 16 16 16 16 Average Capacity 14 | 5 6 9 15 16 16 15 Most Carried 14 | 6 6 8 9 10 13 14 Average Carried 8 | 3 5 6 7 6 9 12 Final Capacity 4 | . . . . . . 4 Final Carried 3 | . . . . . . 3 Class Distribution -------------------- 30% | Scavenger-Mutant 23% | Mutant 22% | Scavenger-Tank 18% | Gunner 5% | Tank Dominant Class ---------------- Mutant | -10/Materials Tank | -9/Materials Gunner | -9/Storage Scavenger-Tank | -8/Materials Scavenger-Mutant | -7/Factory Scavenger-Tank | -7/Lower Caves Resources | -11 -10 -9 -9 -8 -7 -7 ----------- Run | Scr Mat Mat Sto Mat Fac Low Matter Collected 830 | 260 34 55 233 54 72 122 Remotely . | . . . . . . . Salvage Created 1495 | . 75 77 895 111 122 215 Parts 86 | . 3 6 56 8 6 7 Haulers Intercepted . | . . . . . . . Recyclers Shooed . | . . . . . . . Parts Field Recycled . | . . . . . . . Retrieved Matter . | . . . . . . . Parts Self-Destructed 5 | . . . . . . 5 Prevented . | . . . . . . . Kills | -11 -10 -9 -9 -8 -7 -7 ------- Run | Scr Mat Mat Sto Mat Fac Low Combat Hostiles Destroyed 35 | . 2 4 18 2 2 7 Melee 3 | . . . 2 . . 1 Guns 15 | . 2 4 4 2 1 2 Cannons 14 | . . . 12 . 1 1 AOE 3 | . . . . . . 3 Classes Destroyed 8 | . 1 1 5 . 1 . Worker 2 | . . . 2 . . . Recycler 2 | . . . 2 . . . Watcher 1 | . . . 1 . . . Swarmer 11 | . . 3 6 . . 2 Grunt 12 | . 2 1 6 . . 3 Duelist 2 | . . . 1 . . 1 Sentry 9 | . . . 5 2 1 1 Hunter 1 | . . . . . 1 . Best Kill Streak 6 | . 1 4 6 1 1 4 Combat Bots Only 5 | . 1 4 5 1 1 4 Max Kills in Single Turn 2 | . 1 2 2 1 1 1 Gunslinging . | . . . . . . . Exploded 1 | . . . . . . 1 Melee 1 | . . . 1 . . 1 Uniques/NPCs Destroyed . | . . . . . . . Combat | -11 -10 -9 -9 -8 -7 -7 -------- Run | Scr Mat Mat Sto Mat Fac Low Damage Taken 4303 | . 101 160 1531 133 353 2025 Core 1081 | . . 7 359 . 38 677 Absorbed by Shields . | . . . . . . . Core Remaining (%) 77 | 100 100 . 8 100 . . Volleys Fired 101 | . 8 4 60 7 10 12 Largest 4 | . 2 4 3 3 2 3 Hottest 143 | . 70 110 143 123 83 119 Shots Fired 257 | . 16 16 162 17 20 26 Gun 156 | . 16 16 92 10 10 12 Cannon 96 | . . . 70 7 10 9 Launcher 5 | . . . . . . 5 Special . | . . . . . . . Kinetic 125 | . 8 12 77 7 10 11 Thermal 118 | . 8 4 79 10 10 7 Explosive 5 | . . . . . . 5 Electromagnetic 9 | . . . 6 . . 3 Robot Hit Streak 15 | . 4 3 14 15 7 15 Robot Miss Streak 4 | . 2 2 4 1 1 3 Penetration Max . | . . . . . . . Secondary Targets 2 | . . 2 . . . . Max Gunslinging Chain 1 | . . 1 . . . . Shots Hit Robots 161 | . 10 9 91 15 16 20 Core Hits 66 | . 4 5 34 4 5 14 Critical Hits . | . . . . . . . Critical Kills . | . . . . . . . Critical Parts Destroyed . | . . . . . . . Melee Attacks 47 | . . . 19 14 12 2 Impact . | . . . . . . . Slashing 47 | . . . 19 14 12 2 Piercing . | . . . . . . . Sneak Attacks 1 | . . . . 1 . . Combat Hostiles . | . . . . . . . Follow-up Attacks . | . . . . . . . Damage Inflicted 2605 | . 101 75 1059 306 238 826 Guns 812 | . 101 75 289 124 97 126 Cannons 1078 | . . . 723 88 141 126 Explosions 475 | . . . . . . 475 Melee 223 | . . . 32 94 . 97 Ramming 17 | . . . 15 . . 2 Kinetic 628 | . 38 38 238 91 97 126 Thermal 1129 | . 63 37 662 121 141 105 Explosive 475 | . . . . . . 475 Electromagnetic 133 | . . . 112 . . 21 Impact . | . . . . . . . Slashing 223 | . . . 32 94 . 97 Piercing . | . . . . . . . Highest Corruption . | . . . . . . . Average Corruption . | . . . . . . . Corruption Purged . | . . . . . . . Overload Shots . | . . . . . . . Overflow Damage 101 | . . . . 54 . 47 Projectiles . | . . . . . . . Explosions 21 | . . . . . . 21 Melee 80 | . . . . 54 . 26 Knockbacks . | . . . . . . . Impact . | . . . . . . . Kinetic . | . . . . . . . Secondary . | . . . . . . . Self-Inflicted Damage 57 | . . . . . . 57 Shots 2 | . . . . . . 2 Rammed 7 | . . . 6 . . 1 Targets Rammed 8 | . . . 7 . . 1 Kicked 1 | . . . 1 . . . Crushed . | . . . . . . . Highest Temperature 497 | . 96 198 497 128 84 184 Average Temperature 126 | . 49 100 155 51 45 77 Received Heat Transfer 687 | . 54 12 453 54 30 84 Effects 7 | . . . 7 . . . Shutdowns 2 | . . . 2 . . . Energy Bleed 3 | . . . 3 . . . Damage (minor) 2 | . . . 2 . . . Siege Activations . | . . . . . . . Robots Corrupted . | . . . . . . . Combat Hostiles . | . . . . . . . Parts Fried . | . . . . . . . Impact Corruptions . | . . . . . . . Robots Melted . | . . . . . . . Combat Hostiles . | . . . . . . . Parts Melted 5 | . . . 3 . . 2 Heat Transferred 2517 | . 185 111 1443 260 296 222 Parts Sabotaged . | . . . . . . . Parts Stolen . | . . . . . . . Parts Stripped . | . . . . . . . Power Chain Reactions . | . . . . . . . Missiles Intercepted . | . . . . . . . Alert | -11 -10 -9 -9 -8 -7 -7 ------- Run | Scr Mat Mat Sto Mat Fac Low Peak Influence 325 | . 75 151 325 215 113 . Average Influence 102 | . 10 108 140 169 22 . Maximum Alert Level 1 | . . . 1 1 . . Low Security (%) 88 | . . . . . . . Level 1 11 | . . . . . . . Level 2 . | . . . . . . . Level 3 . | . . . . . . . Level 4 . | . . . . . . . Level 5 . | . . . . . . . High Security . | . . . . . . . Max Security . | . . . . . . . Squads Dispatched 9 | . 2 1 2 1 3 . Investigation 2 | . 2 . . . . . Extermination . | . . . . . . . Reinforcement 7 | . . 1 2 1 3 . Assault . | . . . . . . . Garrison . | . . . . . . . Intercept . | . . . . . . . Construction Impeded . | . . . . . . . Haulers Reinforced . | . . . . . . . Stealth | -11 -10 -9 -9 -8 -7 -7 --------- Run | Scr Mat Mat Sto Mat Fac Low Distress Signals 3 | . 1 . 2 . . . Communications Jammed . | . . . . . . . Distress Signals . | . . . . . . . Times Spotted 66 | . 2 7 30 5 9 13 Peak Tracking Total 7 | . 1 4 4 3 2 7 Tactical Retreats 1 | . . . 1 . . . Traps | -11 -10 -9 -9 -8 -7 -7 ------- Run | Scr Mat Mat Sto Mat Fac Low Traps Triggered 2 | . . . 2 . . . Indirectly . | . . . . . . . Trap Hack Attempts . | . . . . . . . Triggered . | . . . . . . . Disarmed . | . . . . . . . Reprogrammed . | . . . . . . . Reused . | . . . . . . . Traps Extracted . | . . . . . . . Installed . | . . . . . . . Triggered . | . . . . . . . Machines | -11 -10 -9 -9 -8 -7 -7 ---------- Run | Scr Mat Mat Sto Mat Fac Low Machines Disabled . | . . . . . . . Max in Single Turn . | . . . . . . . Machines Sabotaged . | . . . . . . . Garrisons Compromised . | . . . . . . . Overloaded Fab Kills . | . . . . . . . Fab Network Shutdowns . | . . . . . . . Hacking | -11 -10 -9 -9 -8 -7 -7 --------- Run | Scr Mat Mat Sto Mat Fac Low Machines Accessed 1 | . . . 1 . . . Terminals 1 | . . . 1 . . . Fabricators . | . . . . . . . Repair Stations . | . . . . . . . Recycling Units . | . . . . . . . Scanalyzers . | . . . . . . . Garrison Access . | . . . . . . . Total Hacks 1 | . . . 1 . . . Successful . | . . . . . . . Failed 1 | . . . 1 . . . Catastrophic . | . . . . . . . Database Lockouts . | . . . . . . . Manual . | . . . . . . . Terminals 1 | . . . 1 . . . Fabricators . | . . . . . . . Repair Stations . | . . . . . . . Recycling Units . | . . . . . . . Scanalyzers . | . . . . . . . Garrison Access . | . . . . . . . Terminal Hacks . | . . . . . . . Fabricator Hacks . | . . . . . . . Repair Station Hacks . | . . . . . . . Recycling Unit Hacks . | . . . . . . . Scanalyzer . | . . . . . . . Garrison Access Hacks . | . . . . . . . Unauthorized Hacks . | . . . . . . . Terminals . | . . . . . . . Fabricators . | . . . . . . . Repair Stations . | . . . . . . . Recycling Units . | . . . . . . . Scanalyzers . | . . . . . . . Garrison Access . | . . . . . . . Data Cores Recovered . | . . . . . . . Used . | . . . . . . . Hacking Detections . | . . . . . . . Full Trace Events . | . . . . . . . Feedback Events . | . . . . . . . Feedback Blocked . | . . . . . . . Robot Schematics Acquired . | . . . . . . . Robots Built . | . . . . . . . Matter . | . . . . . . . Time . | . . . . . . . Total Robot Build Rating . | . . . . . . . Part Schematics Acquired . | . . . . . . . Parts Built . | . . . . . . . Matter . | . . . . . . . Time . | . . . . . . . Total Part Build Rating . | . . . . . . . Parts Repaired . | . . . . . . . Time . | . . . . . . . Parts Recycled . | . . . . . . . Recycled Matter . | . . . . . . . Retrieved Matter . | . . . . . . . Retrieved Components . | . . . . . . . Parts Scanalyzed . | . . . . . . . Part Schematics Acquired . | . . . . . . . Parts Damaged . | . . . . . . . Bothacking | -11 -10 -9 -9 -8 -7 -7 ------------ Run | Scr Mat Mat Sto Mat Fac Low Used RIF Installer . | . . . . . . . Robots Hacked . | . . . . . . . Non-combat . | . . . . . . . Combat . | . . . . . . . Robot Hacks Applied . | . . . . . . . Relay Couplers Released . | . . . . . . . Robots Rewired . | . . . . . . . Allies Hacked . | . . . . . . . Hacks Repelled . | . . . . . . . Allies | -11 -10 -9 -9 -8 -7 -7 -------- Run | Scr Mat Mat Sto Mat Fac Low Total Allies . | . . . . . . . Largest Group . | . . . . . . . Highest-Rated Group . | . . . . . . . Highest-Rated Ally . | . . . . . . . Total Orders . | . . . . . . . Ally Attacks . | . . . . . . . Total Damage . | . . . . . . . Kills . | . . . . . . . Allies Corrupted . | . . . . . . . Allies Melted . | . . . . . . . Intel | -11 -10 -9 -9 -8 -7 -7 ------- Run | Scr Mat Mat Sto Mat Fac Low Robot Analysis Total . | . . . . . . . Derelict Logs Recovered 1 | . . . . . . 1 Drone Launches . | . . . . . . . Drone Recoveries . | . . . . . . . Exploration | -11 -10 -9 -9 -8 -7 -7 ------------- Run | Scr Mat Mat Sto Mat Fac Low Turns Passed 2654 | 73 202 142 780 407 413 637 Spaces Moved 1282 | 53 145 82 260 198 215 329 Core 26 | 11 . . 1 . . 14 Treads 958 | . . . 230 198 215 315 Legs 298 | 42 145 82 29 . . . Wheels . | . . . . . . . Hover . | . . . . . . . Flight . | . . . . . . . Fastest Speed 50 | 50 120 120 150 160 160 50 Average Speed 161 | 110 120 145 181 162 160 176 Slowest Speed 750 | 150 120 150 700 180 160 750 Overloaded Moves . | . . . . . . . Propulsion Burnouts . | . . . . . . . Robots Hopped . | . . . . . . . Cave-ins Triggered . | . . . . . . . Exploration Rate (%) 23 | 5 28 10 50 20 9 41 Regions Visited 6 Branch Regions 2 Pre-discovered Areas . | . . . . . . . Known Exits Taken . | . . . . . . . Unknown Exits Taken 6 | 1 1 1 1 1 1 . Scrap Searched . | . . . . . . . Spaces Dug 38 | . . . 13 13 12 . Terrain Destroyed 72 | . . . 13 13 12 34 Melee 38 | . . . 13 13 12 . Projectile . | . . . . . . . AOE 34 | . . . . . . 34 Actions | -11 -10 -9 -9 -8 -7 -7 --------- Run | Scr Mat Mat Sto Mat Fac Low Total 1558 | 64 157 95 391 248 247 356 Wait 41 | . . 2 19 20 . . Move 1276 | 52 144 81 259 197 214 329 Hop . | . . . . . . . Pick Up 31 | 6 2 4 9 5 5 . Fast Attach 15 | 6 1 . 7 . 1 . Attach 30 | . . 3 10 5 3 9 Detach 4 | . . . 1 . 2 1 Swap 3 | . . 1 . . . 2 Drop 2 | . 2 . . . . . Fire 101 | . 8 4 60 7 10 12 Melee 47 | . . . 19 14 12 2 Ram 5 | . . . 5 . . . Kick 1 | . . . 1 . . . Crush 2 | . . . 1 . . 1 Escape Stasis . | . . . . . . . Rewire . | . . . . . . . Trap . | . . . . . . . Miscellaneous . | . . . . . . . Route ------- -11/Scrapyard -10/Materials -9/Materials -9/Storage -8/Materials -7/Factory -7/Lower Caves (discovered 1 exit: Low) History --------- Turn | Location | Event 12 | -11/Scrapyard | Discovered new exit (range 15) 74 | -11/Scrapyard | Entered Materials 188 | -10/Materials | Discovered new exit (range 16) 276 | -10/Materials | Entered another Materials area 276 | -9/Materials | Evolved 2 slots: Weapon x2 359 | -9/Materials | Discovered new exit (range 15) 418 | -9/Materials | Entered Storage 586 | -9/Storage | Core integrity fell below 50% 613 | -9/Storage | Lost 11 parts (2p2n7w) 668 | -9/Storage | Core integrity fell below 20% 901 | -9/Storage | Build established: Gunner 1171 | -9/Storage | Discovered new exit (range 16) 1198 | -9/Storage | Entered Materials 1198 | -8/Materials | Evolved 2 slots: Propulsion x1, Utility x1 1598 | -8/Materials | Discovered new exit (range 4) 1605 | -8/Materials | Entered Factory 1605 | -7/Factory | Evolved 2 slots: Power x1, Utility x1 1948 | -7/Factory | Build established: Scavenger-Mutant 1983 | -7/Factory | Discovered new exit (range 10) 2018 | -7/Factory | Entered Lower Caves 2058 | -7/Lower Caves | Attracted the attention of an 0b10 checkpoint 2279 | -7/Lower Caves | Lost 3 parts (1p1n1w) 2469 | -7/Lower Caves | Identified exit to Lower Caves 2581 | -7/Lower Caves | Build established: Scavenger-Tank 2625 | -7/Lower Caves | Core integrity fell below 50% 2640 | -7/Lower Caves | Core integrity fell below 20% 2655 | -7/Lower Caves | Destroyed by S-27 Virus with Autogun Last Messages --------------- 02590_ Autogun fries itself beyond repair. 02596_ Imp. Grenade Launcher destroyed. 02598_ Identified Hvy. EM Shotgun. 02599_ Hvy. Assault Rifle destroyed. 02600_ Destroyed VTOL Module. 02603_ Lgt. Treads destroyed. 02603_ S-27 Virus destroyed. 02605_ Lgt. Treads destroyed. 02606_ Hvy. Assault Rifle destroyed. 02608_ EM Pulse Cannon destroyed. 02611_ Greatsword destroyed. 02613_ Core Shielding destroyed. 02615_ Autogun fries itself beyond repair. 02616_ Lgt. Treads destroyed. 02617_ Lgt. Armor Plating destroyed. 02619_ Slammed into S-27 Virus. 02620_ Lgt. Treads destroyed. 02629_ Lrg. Storage Unit destroyed. 02646_ Acquired 8 matter. 02649_ Lrg. Storage Unit destroyed. Map ----- +----------------------------------------------------+ | ?????????????????????????????????????????????## | | ?????????????????????????????????????????????# | | ????????????????????????????????????????????## | | ????????????????????????????????????????????# | | ????????????????????????????????????????#####% | | ???????????????????????????????????????## % #### | | ??????????????????????????????????????## ##???? | | ?????????????????????????????????????## % #????? | | ????????????????????????????????????## % ####??? | | ???????????????????????????????????##% ## #? ###? | | ??????????????????????????????????## ## #? # # | | ??????????????????????????????????#% ### %## # | | ??????????????????????????######### ### # | | ???????????????????????#### $ % ### | | ???????????????????????# ######%# ##### #?# | | ???????????????????????# ????????# ###???# ### | | ???????????????????????# ???????## ##????## ## | | ???????????????????????# #???####%% #?????# % | | ???????????????????????# #??## % ##????# %%= | | ???????????????????????# #??# % ##???# % | | ???????????????????????# ##?# % #???# #### | | ???????????????????????# #### #???# ##??? | | ???????????????????????# #?##% ## #???# #???? | | ???????????????????????# #??# % ### #???# #???? | | ???????????????????????# #??# % #?# ##### #???? | | ??????????????????????## @ #???#% #### ## #???? | | ??????????????????????# ##??###### #### ## ????? | | ??????????????????????##ss#???# #?## #### ## ????? | | ???????????????????????#s ##?## ### ## ????? | | ???????????????????????# s### %### ## ????? | | ???????????????????????# [%[ #?# ## ????? | | ???????????????????????# | ## ## #???? | | ???????????????????????# ##?? | | ???????????????????????# #?? | | ???????????????????????# ###### ##? | | ???????????????????????# ##?????# ## | | ???????????????????????# #??????## | | ???????????????????????# #??????## | | ???????????????????????## ## #???????# | | ????????????????????????## ### #???????## # | | ?????????????????????????## ####?####????????##### | | ??????????????????????????###????????????????????? | | ?????????????????????????????????????????????????? | | ?????????????????????????????????????????????????? | | ?????????????????????????????????????????????????? | | ?????????????????????????????????????????????????? | | ?????????????????????????????????????????????????? | | ?????????????????????????????????????????????????? | | ?????????????????????????????????????????????????? | | ?????????????????????????????????????????????????? | +----------------------------------------------------+ Best States ------------- Heat Dissipation 34 Energy Generation 21 Energy Capacity 325 Matter Stores 300 Matter Capacity 300 Sight Range 16 Terrain Scan Density 110 Armor Coverage 150 Core Shielding 20 Evasion (%) 50 Recoil Reduction 3 Item Schematics ----------------- None Robot Schematics ------------------ None Fabricated ------------ Nothing Alien Tech Used ----------------- None Achievements -------------- Fist Fight Challenges ------------ None Game ------ Seed ThrusterAssemblyMapper Manual? 0 Play Time 00:28:32 Cumulative 13.8 hours Start 2019.10.22 @ 15:50:29 End 2019.10.22 @ 17:43:18 Sessions 3 Manual Loads 0 Difficulty Rogue Special Mode None Game No. 30 Rogue 30 Adventurer 0 Explorer 0 Win Type - Total 0 Types 0/0/0/0/0/0/0 Lore% 9 Gallery% 23 Achievement% 17 Wizard Run 0 Options --------- ASCII 0 Keyboard 1 Movement Vi Keybinds 0 Fullscreen 1 Font 18/SmallcapsGlow Map View 76x50 Tactical HUD 1 Map Filters NONE Filters NONE Steam 1 RUN: e5735a9f-3b10-4125-ae7b-80b219e65ad9